[Event "European Women-ch 2023"]
[Site "Petrovac"]
[Date "2023.03.18"]
[Round "1.2"]
[White "Spalir, Monika"]
[Black "Buksa, Nataliya"]
[Result "1/2-1/2"]
[ECO "B33"]
[WhiteElo "2125"]
[BlackElo "2405"]
[Annotator "TA"]
[PlyCount "102"]
[EventDate "2023.03.15"]
[EventType "swiss"]
[EventCountry "MNE"]
[SourceTitle "playchess.com"]
[Source "ChessBase"]
[SourceQuality "1"]
[TimeControl "40/5400+30:1800+30"]

{[%evp 28,102,18,11,16,22,20,20,20,20,19,0,0,0,0,0,0,0,4,0,0,-7,-37,-39,0,0,0,0,0,-70,-26,-54,-36,-39,-42,-23,-20,-68,-68,-68,0,0,0,0,0,0,0,0,0,0,0,0,0,0,0,-80,0,0,0,0,0,0,0,0,0,0,0,0,0,0,0,0,0,0,0,0,0]} 1. e4 {[%emt 0:00:04]} c5 {[%emt 0:00:43]} 2. Nf3 {[%emt 0:00:05]} Nc6 {[%emt 0:00:08]} 3. d4 {[%emt 0:00:04]} cxd4 {[%emt 0:00:05]} 4. Nxd4 {[%emt 0:00:03]} Nf6 {[%emt 0:00:04]} 5. Nc3 {[%emt 0:00:05]} e5 {[%emt 0:00:03]} 6. Ndb5 {[%emt 0:00:04]} d6 {[%emt 0:00:05]} 7. Bg5 {[%emt 0:00:23]} a6 {[%emt 0:00:55]} 8. Na3 {[%emt 0:00:09]} b5 {[%emt 0:00:05]} 9. Nd5 {[%emt 0:00:14]} Be7 {[%emt 0:00:05]} 10. Bxf6 {[%emt 0:00:11]} Bxf6 {[%emt 0:00:05]} 11. c3 {[%emt 0:00:04]} Rb8 {[%emt 0:00:10]} 12. Nc2 {[%emt 0:00:05]} Bg5 {[%emt 0:00:05]} 13. a4 {[%emt 0:00:09]} bxa4 {[%emt 0:00:25]} 14. Ncb4 {[%emt 0:00:05]} Nxb4 {[%emt 0:00:11]} 15. Nxb4 {[%emt 0:00:05] 15.cxb4 is the fancy move.} Bd7 {[%emt 0:00:54] Against Nc6. ...a5 would be deadly. B33: Sicilian: Pelikan and Sveshnikov Variations.} 16. Bxa6 {[%emt 0:00:28]} (16. Qxd6 Be7 17. Qxe5 (17. Qxa6 $2 Rxb4 18. O-O-O Qc7 $19) 17... O-O $15) 16... Qa5 {[%emt 0:00:43]} 17. Qxd6 {[%emt 0:01:32]} Rb6 {[%emt 0:00:04]} 18. Qd3 {[%emt 0:00:05] Threatens to win with 0-0.} Be6 {[%emt 0:00:04] [#] Hoping for ...Be7. A strong pair of Bishops.} (18... Rxb4 19. cxb4 Qxb4+ 20. Kf1 $16) 19. O-O {[%emt 0:00:28]} (19. Bc4 $5) 19... O-O {[%emt 0:00:03]} 20. Bc4 {[%emt 0:01:02]} Rd8 {[%emt 0:00:54]} 21. Bd5 {[%emt 0:01:21]} Bxd5 $1 {[%emt 0:00:14]} 22. Nxd5 {[%emt 0:01:53] And now b4 would win.} (22. exd5 $5 Be7 $8 23. Qc2 (23. Nc6 $2 Rxc6 {[%mdl 64] Pin} 24. Rfd1 Rcc8 $19) 23... Bxb4 24. Rxa4 $11 (24. cxb4 Rxb4 25. Rfd1 Rd4 $11)) 22... Rxb2 {[%emt 0:00:05] [#]} 23. Rfb1 $146 {[%emt 0:06:36]} ({Predecessor:} 23. c4 Ra8 24. Rfb1 a3 25. g3 Rxb1+ 26. Qxb1 g6 {½-½ Havumaki,A (2433)-Mayer,R (2499) EU-chT11 sf1 email 2017 [2]}) 23... Rxb1+ {[%emt 0:25:10]} 24. Rxb1 {[%emt 0:02:29]} a3 {[%emt 0:03:48]} 25. g3 {[%emt 0:13:56]} Ra8 {[%emt 0:37:30]} 26. Qc4 {[%emt 0:07:51]} h5 {[%emt 0:06:22]} (26... a2 27. Ra1 $16) 27. h4 {[%emt 0:02:54]} Bd8 {[%emt 0:00:03]} (27... a2 28. Ra1 Bd8 29. Kg2 $16 (29. Nb4 Qc7 $16)) 28. Qa2 {[%emt 0:25:06]} (28. Qc6 $11 Qa4 29. Qb7) 28... Qa7 {[%emt 0:04:07]} (28... Qa4 $5 {[%cal Ra4e4]} 29. c4 Qa7 $15) 29. Kg2 {[%emt 0:07:07]} Be7 {[%emt 0:03:37]} 30. Nxe7+ {[%emt 0:04:55]} Qxe7 $15 {[%emt 0:00:04][%mdl 4096] Endgame KQR-KQR} 31. Qd5 {[%emt 0:06:58]} Rd8 {[%emt 0:03:38]} 32. Qa5 {[%emt 0:02:38]} (32. Qa2 $1 $11 {might be stronger.}) 32... Rd2 {[%emt 0:05:15] ...a2 is the strong threat.} 33. Ra1 {[%emt 0:04:10]} Qf6 {[%emt 0:07:06]} ({Black should play} 33... Qb7 $1 $15 34. Qxa3 (34. Qa4 $2 Rxf2+ {[%mdl 64] Decoy} 35. Kxf2 Qb2+ 36. Ke3 Qxa1 $19) 34... Qxe4+ 35. Kg1 Kh7) 34. Qa7 $11 {[%emt 0:03:27]} Qc6 {[%emt 0:00:15]} 35. Qb8+ {[%emt 0:01:56]} (35. Rxa3 Qxe4+ 36. Kh2 Qe1 $17) 35... Kh7 {[%emt 0:00:04]} 36. Qxe5 {[%emt 0:00:05]} (36. Rxa3 $2 Qxe4+ 37. Kh2 Rxf2+ 38. Kh3 Qh1#) 36... a2 {[%emt 0:00:35]} 37. Qxh5+ {[%emt 0:02:21]} Kg8 {[%emt 0:00:04]} 38. Qe5 {[%emt 0:02:59]} Qc4 {[%emt 0:03:23]} 39. h5 {[%emt 0:03:44]} Qb3 {[%emt 0:02:07][%cal Od2f2] aiming for ...Rxf2+!} 40. h6 {[%emt 0:00:00]} gxh6 {[%emt 0:00:00]} 41. Rh1 {[%emt 0:07:33] [#]} (41. Qe8+ $1 $11 Kh7 42. Qe5) 41... Qb2 {[%emt 0:23:41]} ({Black should try} 41... Qb6 $1 $17 42. Qe8+ Kg7 43. Qe5+ Kg8 44. Qe8+ Kg7 45. Qe5+ Qf6 46. Qxf6+ Kxf6) 42. Qe8+ {[%emt 0:01:15] The position is equal.} (42. Rxh6 Rxf2+ 43. Kh3 Rh2+ 44. Kg4 Rxh6 45. Qe8+ Kg7 46. Qe5+ Rf6 47. Kh3 a1=Q 48. Qg5+ Kh7 49. Qh5+ Rh6) 42... Kg7 {[%emt 0:00:04]} 43. Qe5+ {[%emt 0:00:10]} Kf8 {[%emt 0:00:27]} 44. Qc5+ {[%emt 0:03:38]} (44. Rxh6 Rxf2+ 45. Kh3 Rh2+ 46. Kg4 Rxh6 47. Kf3 a1=Q 48. Qc5+ Kg8 49. Qg5+ Rg6 50. Qd8+ Kg7 51. Qd3 Qh1+ 52. Ke3 Qg1+ 53. Kf4 Qbf2+ 54. Qf3 Qgxg3+ 55. Kf5 Qfxf3#) 44... Ke8 {[%emt 0:02:06]} 45. Qc8+ {[%emt 0:00:29]} (45. Rxh6 $2 Rxf2+ 46. Qxf2 a1=Q 47. Rh8+ Ke7 $19) 45... Ke7 {[%emt 0:00:55]} 46. Qc7+ {[%emt 0:00:07]} (46. Rxh6 Rxf2+ 47. Kh3 Rh2+ 48. Kg4 Qe2+ 49. Kf4 Qf2+ 50. Kg4 Qe2+ 51. Kf5 Rf2+ 52. Kg5 Qe3+ {[%mdl 64] Skewer, Double Attack} 53. Kg4 Qxe4+ 54. Kh3 Qh1+ 55. Kg4 Qf3+ 56. Kh3 Qh1+ {[%mdl 64] Skewer} 57. Kg4 Qe4+ 58. Kg5 Qe3+ 59. Kh5 Rh2+ {[%mdl 64] Deflection} 60. Kg4 Rxh6 61. Qc7+ Kf8 62. Qd8+ Kg7 63. Qd4+ Qxd4+ 64. cxd4 Rf6 65. Kh3 a1=Q 66. Kh2 Qf1 67. g4 Rh6+ 68. Kg3 Rh3#) 46... Kf8 {[%emt 0:00:41]} 47. Qc5+ {[%emt 0:03:23]} (47. Rxh6 {gets mated.} Rxf2+ 48. Kh3 Rh2+ 49. Kg4 Rxh6 50. Qd8+ Kg7 51. Qd4+ Rf6 52. e5 Qe2+ 53. Kg5 Rg6+ {[%mdl 64] Skewer} 54. Kf5 a1=Q 55. e6+ f6 56. Qd7+ Kh6) 47... Kg8 {[%emt 0:00:24]} 48. Qc8+ {[%emt 0:00:15]} (48. Rxh6 $2 {too greedy.} Rxf2+ 49. Qxf2 a1=Q $19) 48... Kg7 {[%emt 0:00:39]} 49. Qg4+ {[%emt 0:00:40]} Kf8 {[%emt 0:00:05]} 50. Qc8+ {[%emt 0:00:09]} (50. Rxh6 $2 {is a self mate.} Rxf2+ 51. Kg1 a1=Q+) 50... Kg7 {[%emt 0:00:03]} 51. Qg4+ {[%emt 0:00:07]} Kf8 {[%emt 0:00:22] Weighted Error Value: White=0.09 (flawless) /Black=0.07 (flawless)} 1/2-1/2

[Event "European Women-ch 2023"]
[Site "Petrovac"]
[Date "2023.03.18"]
[Round "1.2"]
[White "Mashchenko, Tamila"]
[Black "Unuk, Laura"]
[Result "0-1"]
[ECO "E51"]
[WhiteElo "1956"]
[BlackElo "2297"]
[Annotator "TA"]
[PlyCount "90"]
[EventDate "2023.03.15"]
[EventType "swiss"]
[EventCountry "MNE"]
[SourceTitle "playchess.com"]
[Source "ChessBase"]
[SourceQuality "1"]
[TimeControl "40/5400+30:1800+30"]

{[%evp 12,90,7,12,37,18,8,22,29,14,50,0,0,-10,0,-7,0,-5,-7,-9,-9,-8,-10,-18,0,-13,-8,-5,8,12,16,19,18,-12,29,-2,7,10,52,0,12,8,3,0,0,0,0,0,25,-24,0,-78,-15,-24,-25,-56,-19,-63,-61,-61,0,0,0,0,0,-278,-266,-265,-254,-325,-297,-304,-214,-485,-487,-490,-483,-465,-450,-485,-460]} 1. d4 {[%emt 0:00:26]} Nf6 {[%emt 0:00:21]} 2. c4 {[%emt 0:00:09]} e6 {[%emt 0:00:14]} 3. Nc3 {[%emt 0:00:06]} Bb4 {[%emt 0:00:29]} 4. e3 {[%emt 0:00:07]} O-O {[%emt 0:00:05]} 5. Bd3 {[%emt 0:00:26]} d5 {[%emt 0:00:56]} 6. a3 {[%emt 0:00:21]} Be7 {[%emt 0:01:43]} 7. Nf3 {[%emt 0:02:18]} a6 {[%emt 0:06:41] E51: Nimzo-Indian: Rubinstein: 4...0-0 5 Nf3 d5.} 8. O-O {[%emt 0:09:38]} dxc4 {[%emt 0:01:04]} 9. Bxc4 {[%emt 0:00:05]} c5 {[%emt 0:07:19] The position is equal.} 10. dxc5 {[%emt 0:26:46]} Bxc5 {[%emt 0:02:22] [#]} 11. Qxd8 $146 {[%emt 0:01:04]} (11. Qe2 $14) ({Predecessor:} 11. Qe2 b5 12. Ba2 Bb7 13. e4 Nbd7 14. e5 Bxf3 15. gxf3 Ne8 16. Rd1 Ra7 17. Ne4 {1-0 Sarana,A (2662)-Deac,B (2699) Titled Tuesday intern op 30th Aug Late blitz 2022 (11)}) 11... Rxd8 $11 {[%emt 0:00:07]} 12. b4 {[%emt 0:00:32]} Be7 {[%emt 0:02:30]} 13. Bb2 {[%emt 0:00:36]} b5 {[%emt 0:01:06]} 14. Be2 {[%emt 0:09:29]} Bb7 {[%emt 0:02:26]} 15. Rfd1 {[%emt 0:01:19]} Nbd7 {[%emt 0:01:33]} 16. Nd4 {[%emt 0:11:22][%cal Bf3d4,Bd4b3,Bb3a5][%mdl 32]} Rac8 {[%emt 0:22:59]} 17. Nb3 {[%emt 0:11:06]} Ne8 {[%emt 0:04:36]} 18. Na5 {[%emt 0:09:09]} Ba8 {[%emt 0:00:52]} 19. Rac1 {[%emt 0:02:27]} Nd6 {[%emt 0:04:42]} 20. a4 {[%emt 0:06:06]} Nc4 {[%emt 0:21:23]} 21. Nxc4 {[%emt 0:00:12]} bxc4 {[%emt 0:00:03]} 22. Na2 {[%emt 0:00:21]} (22. b5 $5 {[%cal Rb5a6]}) 22... Bd5 {[%emt 0:01:17]} (22... Bc6 $5 {[%cal Rc6a4]}) 23. Bd4 {[%emt 0:04:33]} e5 {[%emt 0:07:34]} 24. Bc3 {[%emt 0:00:15]} Be6 {[%emt 0:01:00]} (24... Bc6 $5 {[%cal Rc6a4]}) 25. a5 {[%emt 0:01:26]} (25. Bf3 $14) 25... f6 {[%emt 0:00:51]} 26. Bf3 {[%emt 0:00:32]} Nb8 {[%emt 0:03:08]} 27. Bb7 {[%emt 0:01:11]} Rxd1+ {[%emt 0:01:08]} 28. Rxd1 {[%emt 0:00:07]} Rc7 $36 {[%emt 0:00:31][%mdl 2048] Black fights for an advantage.} 29. Bf3 {[%emt 0:01:05]} Kf8 {[%emt 0:01:19]} 30. Kf1 {[%emt 0:00:36]} (30. Rb1 {was preferrable.}) 30... Bf5 {[%emt 0:00:53]} 31. e4 {[%emt 0:00:50]} (31. Rd5 $11) 31... Bd7 {[%emt 0:00:31]} ({Black should try} 31... Be6 $17) 32. Be2 {[%emt 0:00:48]} Ba4 {[%emt 0:01:07]} 33. Rd2 {[%emt 0:00:20]} Bb3 {[%emt 0:02:24]} (33... Nc6 $5 {[%cal Rc6a7]}) 34. Nc1 {[%emt 0:00:25]} Nc6 $1 {[%emt 0:00:39]} 35. Rb2 {[%emt 0:00:34]} Nd4 {[%emt 0:01:34]} ({Black should play} 35... Ba4 $1 $15) 36. Bxd4 {[%emt 0:00:51][%mdl 64] [#] Remove Defender} exd4 {[%emt 0:00:04]} 37. Nxb3 {[%emt 0:00:08]} cxb3 {[%emt 0:00:04][%mdl 4096] Endgame KRB-KRB} 38. f3 $2 {[%emt 0:00:19][%mdl 8192]} (38. Bxa6 $11 Rc3 39. Bb5) 38... Rc1+ $19 {[%emt 0:00:48]} (38... Bxb4 $2 {loses.} 39. Rxb3 Rc1+ 40. Kf2 Be1+ 41. Kg1 $19) 39. Kf2 {[%emt 0:00:05]} Bxb4 {[%emt 0:00:15] [#] aiming for ...Be1+.} 40. Bd3 {[%emt 0:00:00]} Rc3 {[%emt 0:00:00]} ({And not} 40... Bxa5 41. Rxb3 Bc7 42. Bxa6 $17) 41. Ke2 {[%emt 0:07:01]} Ba3 {[%emt 0:18:40]} 42. Rd2 {[%emt 0:02:04]} (42. Rb1) 42... Bc1 {[%emt 0:00:49] Black is clearly winning.} 43. Rd1 {[%emt 0:00:06]} b2 {[%emt 0:00:15][%cal Oc3d3] ( -> ...Rxd3!)} 44. Bb1 {[%emt 0:01:00]} Re3+ {[%emt 0:01:43]} 45. Kf1 {[%emt 0:00:39]} Ra3 {[%emt 0:00:05] Weighted Error Value: White=0.38/Black=0.15 (very precise)} 0-1

[Event "European Women-ch 2023"]
[Site "Petrovac"]
[Date "2023.03.18"]
[Round "1.3"]
[White "Mammadzada, Gunay"]
[Black "Richterova, Natasa"]
[Result "1-0"]
[ECO "B19"]
[WhiteElo "2472"]
[BlackElo "2190"]
[Annotator "TA"]
[PlyCount "145"]
[EventDate "2023.03.15"]
[EventType "swiss"]
[EventCountry "MNE"]
[SourceTitle "playchess.com"]
[Source "ChessBase"]
[SourceQuality "1"]
[TimeControl "40/5400+30:1800+30"]

{[%evp 20,145,21,24,35,39,59,56,71,48,53,43,60,31,39,26,35,30,50,58,102,101,77,94,95,26,27,16,12,19,0,-16,14,14,25,27,41,35,37,22,24,27,18,15,32,11,22,27,11,18,18,19,71,25,56,14,46,20,156,68,135,136,147,135,176,200,252,164,170,166,140,138,236,248,233,240,231,248,233,252,249,245,719,720,488,810,775,702,2566,1052,5116,852,845,0,6199,756,572,447,29988,537,535,533,532,483,483,516,516,511,523,511,29967,29971,29970,29964,29970,1999,691,885,29977,29976,29976,29977,29999,29976,29997,29998,29998,29999]} 1. e4 {[%emt 0:00:04]} c6 {[%emt 0:01:13]} 2. Nc3 {[%emt 0:03:36]} d5 {[%emt 0:01:00]} 3. d4 {[%emt 0:00:26]} dxe4 {[%emt 0:03:17]} 4. Nxe4 {[%emt 0:00:06]} Bf5 {[%emt 0:00:20]} 5. Ng3 {[%emt 0:00:11]} Bg6 {[%emt 0:00:05]} 6. h4 {[%emt 0:00:25]} h6 {[%emt 0:00:10]} 7. Nf3 {[%emt 0:00:16]} Nd7 {[%emt 0:00:31]} 8. Bd3 {[%emt 0:00:27]} Bxd3 {[%emt 0:00:24]} 9. Qxd3 {[%emt 0:00:02]} Ngf6 {[%emt 0:00:58]} 10. Bf4 {[%emt 0:03:19]} e6 {[%emt 0:01:26]} 11. O-O-O {[%emt 0:00:23]} Qa5 {[%emt 0:07:06] B19: Classical Caro-Kann: 4...Bf5 main line.} 12. Kb1 {[%emt 0:02:00]} Nd5 {[%emt 0:17:15]} 13. Bd2 {[%emt 0:04:17] [#]} Qa4 $146 {[%emt 0:16:58] White is slightly better.} ({Predecessor:} 13... Nb4 14. Qb3 Qb6 15. Rhe1 Be7 16. Nf5 Nd5 17. Nxg7+ Kf8 18. Qxb6 axb6 19. Nh5 b5 {1-0 Jourde,M (1805)-Andriandaza,T (1717) Reunion op 16th 2014 (6)}) 14. c3 {[%emt 0:20:35]} (14. c4 $5 {[%cal Rc4d5]} N5f6 15. b3 $14) 14... O-O-O {[%emt 0:02:09]} 15. Ne4 {[%emt 0:04:54]} N5f6 {[%emt 0:10:54]} 16. Rc1 {[%emt 0:13:02]} Nxe4 {[%emt 0:04:24]} 17. Qxe4 {[%emt 0:00:06]} Bd6 {[%emt 0:00:25]} 18. c4 {[%emt 0:01:48]} Nf6 {[%emt 0:01:05]} 19. Qe2 {[%emt 0:00:35]} Qa6 {[%emt 0:02:07]} 20. Ne5 {[%emt 0:06:31]} Rhf8 {[%emt 0:05:32]} 21. Rh3 {[%emt 0:02:53]} Nd7 {[%emt 0:04:57]} 22. Bf4 {[%emt 0:11:18] White is more active.} (22. Nxd7 $16 Rxd7 23. Qg4) 22... Nxe5 $11 {[%emt 0:03:50]} 23. dxe5 {[%emt 0:04:43]} Bc5 {[%emt 0:00:38]} 24. Rg3 {[%emt 0:01:14]} Rg8 {[%emt 0:00:33]} 25. Qh5 {[%emt 0:02:42]} g6 {[%emt 0:02:57]} 26. Qe2 {[%emt 0:03:27]} Rh8 {[%emt 0:01:41]} 27. h5 {[%emt 0:06:20]} g5 {[%emt 0:00:39]} 28. Bd2 {[%emt 0:01:08]} Rd7 {[%emt 0:02:46]} 29. Rd3 {[%emt 0:02:59]} Rxd3 {[%emt 0:03:50]} 30. Qxd3 {[%emt 0:00:02]} Rd8 {[%emt 0:00:10]} 31. Qe2 {[%emt 0:00:39]} Qb6 {[%emt 0:00:06]} 32. Rf1 {[%emt 0:02:15]} (32. f4 $5 {[%cal Rf4g5]}) 32... Bd4 {[%emt 0:01:53][%csl Gd4][%cal Rb6b2] [#]} 33. Bc1 {[%emt 0:00:02]} Qc5 {[%emt 0:01:49]} 34. f4 {[%emt 0:00:09]} gxf4 {[%emt 0:03:04]} 35. Bxf4 {[%emt 0:02:29]} Rd7 {[%emt 0:00:04]} (35... Qf8 $11 {remains equal.}) 36. Rd1 {[%emt 0:00:39]} (36. Bxh6 $16 {Bg7 would be deadly.} Qxe5 37. Qxe5 Bxe5 38. Be3) 36... Qb4 {[%emt 0:01:07][%cal Od4b2] [#] ...Bxb2! is the strong threat.} 37. Rc1 {[%emt 0:01:24]} (37. Bxh6 Bxb2 38. Rxd7 (38. Bf8 Rxd1+ 39. Qxd1 Qxf8 $15) 38... Bd4+ 39. Kc2 Kxd7 $15) 37... Qc5 {[%emt 0:00:17]} 38. g4 {[%emt 0:01:06]} b6 {[%emt 0:00:28] White now steadily converts the win.} (38... Qf8 $1 $11) 39. Re1 {[%emt 0:00:27]} (39. Bxh6 Qxe5 40. Qxe5 Bxe5 $16) (39. Qe4 $16) 39... Bf2 {[%emt 0:00:13]} (39... Qf8 $14) 40. Rf1 $36 {[%emt 0:00:00][%mdl 2048] White has strong initiative.} Bd4 {[%emt 0:00:00][%cal Od4b2]} 41. a3 {[%emt 0:03:18]} a5 {[%emt 0:04:53]} 42. Rd1 {[%emt 0:01:00][%cal Bf1d1,Bd1d2,Bd2g2,Bg2e2,Be2e3][%mdl 32]} (42. Bxh6 Qxe5 43. Qxe5 Bxe5 $16) 42... Qf8 {[%emt 0:04:01]} 43. Rd2 {[%emt 0:11:56]} c5 {[%emt 0:08:27]} 44. Qe4 {[%emt 0:01:46] Hoping for Qa8+.} Kc7 {[%emt 0:00:11]} 45. Rg2 {[%emt 0:01:49]} Kb8 {[%emt 0:06:28]} (45... Qh8 $16) 46. g5 $18 {[%emt 0:02:40]} hxg5 {[%emt 0:00:02]} 47. Bxg5 {[%emt 0:00:44]} (47. Rxg5 Ka7 48. Rg2 f6) 47... Ka7 {[%emt 0:01:12]} 48. h6 {[%emt 0:05:09] And now Rh2 would win.} Qh8 {[%emt 0:08:23]} 49. Re2 {[%emt 0:01:00]} Rb7 {[%emt 0:00:49]} 50. Ka2 {[%emt 0:00:04]} f6 $2 {[%emt 0:00:17]} (50... Rc7 51. Bf4 Re7) 51. exf6 {[%emt 0:02:47]} (51. Bxf6 Qxh6 52. Qc6 (52. Qg4 $2 Qc1 $19) 52... Qh5 $11) 51... Bxf6 {[%emt 0:00:09]} 52. Bxf6 {[%emt 0:04:08]} Qxf6 {[%emt 0:00:01]} 53. Qxe6 {[%emt 0:00:16][%mdl 4096] Endgame KQR-KQR} Qf3 {[%emt 0:00:56]} 54. Re3 {[%emt 0:00:48]} (54. Rh2 $142 Qd3 55. Rg2) 54... Qf4 {[%emt 0:00:01]} 55. Re4 {[%emt 0:00:53]} (55. Rh3 $142 Rh7 56. Rh1) 55... Qf3 {[%emt 0:00:10]} 56. Re3 $2 {[%emt 0:00:25]} (56. Rh4 $18) 56... Qd1 $2 {[%emt 0:00:44][%mdl 8192]} (56... Qf4 $11 57. Rd3 Qf7 58. Qxf7 Rxf7) 57. Rh3 {[%emt 0:00:28]} (57. Rg3 $142 Qd4 58. Rg4) 57... Qc2 {[%emt 0:00:20]} 58. Qg8 {[%emt 0:00:12] White threatens h7 and mate.} b5 {[%emt 0:02:01]} (58... Qh7 $18 59. Qe6 Qc2) 59. Qd5 {[%emt 0:01:01]} (59. h7 $142 b4 60. axb4 (60. h8=N $2 {leads to mate.} b3+) 60... Rxb4 61. h8=Q (61. h8=R $2 Qxb2#) 61... Ra4+ 62. Ra3 Qxc4+ 63. Qxc4 Rxc4 64. Rxa5+ Kb7 65. Qd8) 59... bxc4 {[%emt 0:00:47][%csl Gb7][%cal Rc2b2]} 60. Qxc5+ {[%emt 0:00:06]} Ka6 {[%emt 0:00:48][%csl Gb7][%cal Rc2b2]} 61. Qd4 {[%emt 0:00:26] Intending Rf3 and mate.} Rb3 {[%emt 0:01:07] Dodges Rf3} 62. Qf6+ {[%emt 0:00:51]} Ka7 {[%emt 0:00:39]} 63. Qg7+ {[%emt 0:00:27]} Ka6 {[%emt 0:00:03]} 64. Rg3 {[%emt 0:00:43]} Rb6 {[%emt 0:00:28] Repels Qf6} (64... Rxg3 $18 65. Qxg3 Qf5 66. Qd6+ Kb7) 65. h7 {[%emt 0:00:30]} c3 {[%emt 0:00:16]} 66. Qxc3 {[%emt 0:00:10]} (66. h8=Q $2 Qxb2#) 66... Qxh7 {[%emt 0:00:31]} 67. Qc4+ {[%emt 0:00:03]} ({Not} 67. Rg5 Qf7+ 68. b3 Qf2+ 69. Qb2 (69. Kb1 Qf1+ 70. Ka2 Qf2+ 71. Qb2 Rf6 $14) 69... Qxb2+ 70. Kxb2 Rh6 $14) (67. Rg7 $142 Qe4 68. Qc8+ Rb7 69. Rg5 Qd4 70. Qc6+ {[%mdl 64] Deflection} Ka7 71. Rxa5+ Kb8 72. Qe8+ Kc7 73. Qf7+ Kb8 74. Qg8+ Kc7 75. Qh7+ Kb8 76. Qh2+ Rc7 77. Rb5+ Kc8 78. Qh3+ Rd7 79. Qb3) 67... Ka7 {[%emt 0:00:52]} 68. Rg5 {[%emt 0:00:21]} Ra6 {[%emt 0:00:55]} 69. Qd4+ {[%emt 0:00:04] White mates.} Ka8 {[%emt 0:00:29]} 70. Rg7 {[%emt 0:00:18][%cal Rd4d8]} Rd6 {[%emt 0:00:36]} 71. Qe5 {[%emt 0:00:35]} Qd3 {[%emt 0:00:29]} 72. Qe8+ {[%emt 0:00:16]} Rd8 {[%emt 0:00:06]} 73. Qc6+ {[%emt 0:00:01] Weighted Error Value: White=0.43/Black=0.31} 1-0